fUSD/lending_fUSD_20241008
["ID","MTS","AMOUNT","RATE_DAILY","PERIOD"]
[340041513,1728379832667,-16031.25333071,0.0001099,2]
[340041514,1728379837956,-515.28705452,0.000109,2]
[340041515,1728379837969,-480.66431382,0.000109,2]
[340041516,1728379837978,-626.92506196,0.00010976,2]
[340041517,1728379837990,-307.07493804,0.00010976,2]
[340041518,1728379838001,-267.92506196,0.0001099,2]
[340041519,1728379838013,-3861.57904239,0.0001099,2]
[340041520,1728379838031,-559.0,0.00010976,2]
[340041521,1728379838040,-17234.44843009,0.0001099,2]
[340041522,1728379838051,-4183.97458834,0.0001099,2]
[340041523,1728379838062,-806.559281,0.0001099,2]
[340041524,1728379838074,-19932.1079245,0.0001099,2]
[340041525,1728379838129,-1043.64469996,0.0001099,2]
[340041526,1728379838140,-326.45,0.0001099,2]
[340041527,1728379838152,-554.3238424,0.0001099,2]
[340041528,1728379838163,-442.25,0.0001099,2]
[340041529,1728379838174,-300.001004,0.0001099,2]
[340041530,1728379838185,-2234.28306925,0.0001099,2]
[340041531,1728379838201,-3725.39043297,0.0001099,2]
[340041532,1728379838212,-10057.58,0.0001099,2]
[340041533,1728379838223,-709.08266212,0.0001099,2]
[340041534,1728379838234,-5385.61115174,0.0001099,2]
[340041535,1728379838261,-307.07755376,0.0001099,2]
[340041536,1728379838276,-32160.03000479,0.0001099,2]
[340041537,1728379838288,-469.45,0.0001099,2]
[340041538,1728379838322,-6413.35481434,0.0001099,2]
[340041539,1728379838334,-1537.30297559,0.0001099,2]
[340041540,1728379838347,-108102.9769655,0.0001099,2]
[340041541,1728379838356,-500.0,0.00010999,2]
[340041542,1728379838365,-276.91078403,0.00010999,2]
[340041543,1728379838374,-500.0,0.00010999,2]
[340041544,1728379838385,-500.0,0.00010999,2]
[340041545,1728379838394,-374809.55998457,0.00011,2]
[340041546,1728379838405,-14033.33161396,0.00011,2]
[340041547,1728379838417,-542.99403541,0.00011,2]
[340041548,1728379838428,-4852.6012,0.00011,2]
[340041549,1728379838439,-2756.36521699,0.00011,2]
[340041550,1728379838450,-1323.56384653,0.00011,2]
[340041551,1728379838461,-443.13092382,0.00011,2]
[340041552,1728379838472,-4359.03,0.00011,2]
[340041553,1728379838483,-1100.67125844,0.00011,2]
[340041577,1728379840205,-347.78074878,0.00011,2]
[340041578,1728379840216,-3593.08737091,0.00011,2]
[340041579,1728379840227,-322.85018007,0.00011,2]
[340041580,1728379840238,-310.14703584,0.00011,2]
[340041581,1728379840249,-503.4787228,0.00011,2]
[340041582,1728379840262,-17049.04648691,0.00011,2]
[340041583,1728379840273,-307.46014093,0.00011,2]
[340041585,1728379840284,-326.28868755,0.00011,2]
[340041587,1728379840295,-24104.6103854,0.00011,2]
[340041589,1728379840306,-416.47603396,0.00011,2]
[340041591,1728379840318,-540.18000005,0.00011,2]
[340041593,1728379840328,-1079.800005,0.00011,2]
[340041596,1728379840346,-3592.60871217,0.00011,2]
[340041599,1728379840356,-5520.4318433,0.00011,2]
[340041601,1728379840367,-725.07205368,0.00011,2]
[340041603,1728379840378,-47982.34644844,0.00011,2]
[340041608,1728379842987,-657.34,0.00010314,2]
[340041609,1728379842997,-16762.9299562,0.00011,2]
[340041610,1728379843115,-3939.92439593,0.00011,2]
[340041611,1728379843133,-1515.7106818,0.00011,2]
[340041612,1728379843155,-2694.80145435,0.00011,2]
[340041613,1728379843177,-6428.28499988,0.00011,2]
[340041614,1728379843194,-5360.00000005,0.00011,2]
[340041615,1728379843214,-883.32723249,0.00011,2]
[340041616,1728379843231,-16513.05539984,0.00011,2]
[340041617,1728379843248,-362686.94678073,0.00011,2]
[340041618,1728379843266,-660098.04423089,0.00011,2]
[340041619,1728379843285,-297.59077079,0.00011,2]
[340041620,1728379843303,-32250.00000001,0.00011,2]
[340041621,1728379843318,-27020.25076693,0.00011,2]
[340041622,1728379843339,-311.308985,0.00011,2]
[340041623,1728379843356,-935.898057,0.00011,2]
[340041640,1728379845825,-2518.36541818,0.00011,2]
[340041641,1728379845937,-1183.33368334,0.00011,2]
[340041642,1728379845956,-695.19249147,0.00011,2]
[340041643,1728379845973,-354.11893621,0.00011,2]
[340041644,1728379845990,-357.26507167,0.00011,2]
[340041645,1728379846049,-608.35712949,0.00011,2]
[340041646,1728379846066,-1900.0,0.00011,2]
[340041647,1728379846083,-10125.07304095,0.00011,2]
[340041648,1728379879165,500.0,8.22e-05,2]
[340041649,1728379880737,500.0,9.59e-05,2]
[340041650,1728379896923,300.0,0.000103,3]
[340041651,1728379899164,600.0,0.000104,3]
[340041652,1728379899860,500.0,8.22e-05,2]
[340041653,1728379901359,1000.0,0.000105,3]
[340041654,1728379903506,1300.0,0.000106,3]
[340041655,1728379905615,1600.0,0.000107,3]
[340041656,1728379907718,300.0,0.000108,3]
[340041657,1728379909837,300.0,0.000109,3]
[340041658,1728379910601,500.0,0.00010164,2]
[340041664,1728380150210,250.0,9.898e-05,2]
[340041665,1728380205413,6193.0,0.000103,5]
[340041666,1728380233782,225.4,9.866e-05,2]
[340041667,1728380275065,250.0,9.859e-05,2]
[340041668,1728380276752,250.0,9.859e-05,2]
[340041671,1728380388546,672.12,8.219e-05,2]
[340041672,1728380511839,640.0,9.802e-05,2]
[340041673,1728380603848,171.0,9.796e-05,2]
[340041674,1728380637706,200.14,9.796e-05,2]
[340041675,1728380652567,250.0,9.796e-05,2]
[340041676,1728380723167,500.0,0.00010164,2]
[340041677,1728380811357,246.24,9.799e-05,2]
[340041678,1728380862029,250.0,9.794e-05,2]
[340041679,1728380908040,638.51,8.219e-05,2]
[340041682,1728381032087,-337.36323209,0.00010414,2]
[340041683,1728381032100,-22.63676791,0.00010414,2]
[340041684,1728381032110,-638.51,0.00010465,2]
[340041685,1728381032120,-150.0,0.00010658,2]
[340041686,1728381032130,-150.0,0.00010659,2]
[340041687,1728381032140,-150.0,0.00010667,2]
[340041688,1728381032150,-150.0,0.00010668,2]
[340041689,1728381032159,-150.0,0.00010668,2]
[340041690,1728381032169,-150.0,0.00010675,2]
[340041691,1728381032178,-150.0,0.00010678,2]
[340041692,1728381032188,-150.0,0.00010688,2]
[340041693,1728381032198,-150.0,0.0001069,2]
[340041694,1728381032207,-150.0,0.00010692,2]
[340041695,1728381032217,-150.0,0.00010695,2]
[340041696,1728381032227,-150.0,0.00010697,2]
[340041697,1728381032236,-150.0,0.00010698,2]
[340041698,1728381032245,-499.99,0.00010699,2]
[340041699,1728381032256,-150.0,0.00010714,2]
[340041700,1728381032266,-150.0,0.00010716,2]
[340041701,1728381032276,-150.0,0.00010718,2]
[340041702,1728381032285,-1500.0,0.0001072,2]
[340041703,1728381032295,-0.17383795,0.00010722,2]
[340041704,1728381032307,-149.82616205,0.00010722,2]
[340041705,1728381032317,-150.0,0.00010724,2]
[340041706,1728381032326,-104.17383795,0.00010725,2]
[340041707,1728381032338,-45.82616205,0.00010725,2]
[340041708,1728381032348,-150.0,0.00010725,2]
[340041709,1728381032357,-150.0,0.00010728,2]
[340041710,1728381032366,-150.0,0.00010729,2]
[340041711,1728381032376,-150.0,0.00010736,2]
[340041712,1728381032386,-67.00908825,0.00010739,2]
[340041713,1728381032398,-82.99091175,0.00010739,2]
[340041714,1728381032408,-150.0,0.00010741,2]
[340041715,1728381032417,-116.71844827,0.00010741,2]
[340041716,1728381032713,-33.28155173,0.00010741,2]
[340041717,1728381032723,-777.7751444,0.00010744,2]
[340041718,1728381032735,-493.5770007,0.00010744,2]
[340041719,1728381032746,-264.82796935,0.00010744,2]
[340041720,1728381032758,-300.0,0.00010744,2]
[340041721,1728381032769,-300.0,0.00010744,2]
[340041722,1728381032781,-573.03210488,0.00010744,2]
[340041723,1728381032792,-2942.13078067,0.00010744,2]
[340041724,1728381032803,-150.0,0.00010745,2]
[340041725,1728381032812,-150.0,0.00010745,2]
[340041726,1728381032821,-245.59376301,0.00010747,2]
[340041727,1728381032833,-1254.40623699,0.00010747,2]
[340041728,1728381032842,-150.0,0.00010748,2]
[340041729,1728381032853,-150.0,0.0001075,2]
[340041730,1728381032863,-150.0,0.00010751,2]
[340041731,1728381032872,-150.0,0.00010753,2]
[340041732,1728381032883,-150.0,0.0001076,2]
[340041733,1728381032892,-150.0,0.00010762,2]
[340041734,1728381032901,-150.0,0.00010764,2]
[340041735,1728381032914,-150.0,0.00010769,2]
[340041736,1728381032923,-150.0,0.0001077,2]
[340041737,1728381032933,-150.0,0.00010774,2]
[340041738,1728381032942,-150.0,0.00010776,2]
[340041739,1728381032952,-150.0,0.00010779,2]
[340041740,1728381032962,-150.0,0.0001078,2]
[340041741,1728381032971,-150.0,0.00010782,2]
[340041742,1728381032980,-150.0,0.00010783,2]
[340041743,1728381032990,-150.0,0.00010783,2]
[340041744,1728381032999,-150.0,0.00010786,2]
[340041745,1728381033008,-150.0,0.00010791,2]
[340041746,1728381033018,-150.0,0.00010793,2]
[340041747,1728381033028,-150.0,0.00010794,2]
[340041748,1728381033038,-349.30450305,0.00010794,2]
[340041749,1728381033048,-150.0,0.00010795,2]
[340041750,1728381033057,-150.0,0.00010796,2]
[340041751,1728381033067,-150.0,0.00010798,2]
[340041752,1728381033077,-1999.65841983,0.000108,2]
[340041753,1728381033089,-413.47322908,0.000108,2]
[340041754,1728381033103,-347.60960219,0.000108,2]
[340041755,1728381033115,-4524.6298489,0.000108,2]
[340041756,1728381033125,-150.0,0.00010804,2]
[340041757,1728381033135,-1237.69870775,0.00010805,2]
[340041758,1728381033145,-150.0,0.00010809,2]
[340041759,1728381033155,-86.74702658,0.0001081,2]
[340041760,1728381033167,-295.44814184,0.0001081,2]
[340041761,1728381033179,-1117.80483158,0.0001081,2]
[340041762,1728381033189,-150.0,0.00010816,2]
[340041763,1728381033199,-150.0,0.00010818,2]
[340041764,1728381033209,-150.0,0.00010818,2]
[340041765,1728381033219,-150.0,0.00010819,2]
[340041766,1728381033230,-150.0,0.00010821,2]
[340041767,1728381033240,-151.85608626,0.00010822,2]
[340041768,1728381033249,-150.0,0.00010822,2]
[340041769,1728381033259,-150.0,0.00010827,2]
[340041770,1728381033269,-150.0,0.00010828,2]
[340041771,1728381033279,-150.0,0.00010834,2]
[340041772,1728381033289,-150.0,0.00010835,2]
[340041773,1728381033299,-150.0,0.00010836,2]
[340041774,1728381033309,-150.0,0.00010847,2]
[340041775,1728381033319,-33.5390822,0.00010848,2]
[340041776,1728381033331,-116.4609178,0.00010848,2]
[340041777,1728381033341,-150.0,0.00010849,2]
[340041778,1728381033353,-150.0,0.00010851,2]
[340041779,1728381033362,-299.58624136,0.00010853,2]
[340041780,1728381033372,-150.0,0.00010854,2]
[340041781,1728381033382,-150.0,0.00010858,2]
[340041782,1728381033392,-150.0,0.00010858,2]
[340041783,1728381033402,-150.0,0.00010859,2]
[340041784,1728381033411,-150.0,0.00010864,2]
[340041785,1728381033421,-150.0,0.00010865,2]
[340041786,1728381033430,-150.0,0.00010866,2]
[340041787,1728381033440,-150.0,0.00010866,2]
[340041788,1728381033449,-150.0,0.00010875,2]
[340041789,1728381033460,-262.1704,0.00010876,2]
[340041790,1728381033470,-150.0,0.00010883,2]
[340041791,1728381033479,-150.0,0.00010885,2]
[340041792,1728381033490,-357.0158,0.0001089,2]
[340041793,1728381033500,-150.0,0.00010891,2]
[340041794,1728381033510,-150.0,0.00010892,2]
[340041795,1728381033520,-150.0,0.00010893,2]
[340041796,1728381033530,-150.0,0.00010893,2]
[340041797,1728381033540,-392.13007046,0.00010899,2]
[340041798,1728381033550,-1229.8987251,0.00010899,2]
[340041799,1728381033560,-150.0,0.00010899,2]
[340041800,1728381033570,-3497.970885,0.000109,2]
[340041801,1728381033580,-8794.7515,0.000109,2]
[340041802,1728381033589,-931.3516,0.000109,2]
[340041803,1728381033600,-33494.0474,0.000109,2]
[340041804,1728381033609,-1312.5925,0.000109,2]
[340041805,1728381033619,-186.62,0.000109,2]
[340041806,1728381033629,-132399.9134,0.000109,2]
[340041807,1728381033638,-169.38536069,0.000109,2]
[340041808,1728381033648,-222.318861,0.000109,2]
[340041809,1728381033658,-161.03621254,0.000109,2]
[340041810,1728381033667,-150.0,0.00010903,2]
[340041811,1728381033676,-150.0,0.00010908,2]
[340041812,1728381033686,-150.0,0.00010909,2]
[340041813,1728381033696,-150.0,0.00010913,2]
[340041814,1728381033706,-150.0,0.00010914,2]
[340041815,1728381033716,-150.0,0.00010921,2]
[340041816,1728381033726,-150.0,0.00010921,2]
[340041817,1728381033735,-150.0,0.00010927,2]
[340041818,1728381033745,-150.0,0.00010929,2]
[340041819,1728381033755,-150.0,0.00010933,2]
[340041820,1728381033765,-150.0,0.00010935,2]
[340041821,1728381033775,-150.0,0.00010936,2]
[340041822,1728381033785,-150.0,0.00010936,2]
[340041823,1728381033794,-150.0,0.00010941,2]
[340041824,1728381033805,-150.0,0.00010948,2]
[340041825,1728381033814,-150.0,0.0001095,2]
[340041826,1728381033825,-200.0,0.00010959,2]
[340041827,1728381033835,-167.94,0.00010959,2]
[340041828,1728381033845,-250.0,0.00010959,2]
[340041829,1728381033855,-167.21,0.00010959,2]
[340041830,1728381033866,-1365.16,0.00010959,2]
[340041831,1728381033876,-500.0,0.0001096,2]
[340041832,1728381033886,-500.0,0.00010973,2]
[340041833,1728381033895,-500.0,0.00010973,2]
[340041834,1728381033906,-646.322,0.00010976,2]
[340041835,1728381033919,-150.0,0.00010976,2]
[340041836,1728381033929,-150.0,0.00010977,2]
[340041837,1728381033938,-150.0,0.00010984,2]
[340041838,1728381034030,-150.0,0.00010985,2]
[340041839,1728381034040,-5502.88032068,0.00010999,2]
[340041840,1728381034050,-500.0,0.00010999,2]
[340041841,1728381034059,-243.83754882,0.00010999,2]
[340041842,1728381034069,-500.0,0.00010999,2]
[340041843,1728381034079,-54583.79550615,0.00011,2]
[340041844,1728381034091,-8741.94797892,0.00011,2]
[340041845,1728381034103,-909.3594811,0.00011,2]
[340041846,1728381034115,-15585.73091401,0.00011,2]
[340041847,1728381034127,-3700.0,0.00011,2]
[340041852,1728381038191,-150.0,0.00010749,2]
[340041853,1728381038202,-150.0,0.00010765,2]
[340041854,1728381038211,-150.0,0.00010774,2]
[340041855,1728381038221,-150.0,0.00010811,2]
[340041856,1728381038231,-150.0,0.00010823,2]
[340041857,1728381038240,-150.0,0.00010834,2]
[340041858,1728381038250,-150.0,0.00010835,2]
[340041859,1728381038260,-150.0,0.00010907,2]
[340041860,1728381038270,-150.0,0.00010914,2]
[340041861,1728381038280,-150.0,0.00010917,2]
[340041862,1728381038289,-150.0,0.00010925,2]
[340041863,1728381038299,-150.0,0.00010934,2]
[340041864,1728381038309,-150.0,0.00010936,2]
[340041865,1728381038318,-4532.45524773,0.00011,2]
[340041866,1728381038339,-6728.66465275,0.00011,2]
[340041867,1728381038372,-15000.0,0.00011,2]
[340041876,1728381040141,-39687.57759672,0.00011,2]
[340041877,1728381040421,-1905.90192688,0.00011,2]
[340041884,1728381043103,-171.58705225,0.00010999,2]
[340041885,1728381043114,-232.44954775,0.00011,2]
[340041886,1728381043268,-1007745.97658897,0.00011,2]
[340041887,1728381043383,-4082.0600695,0.00011,2]
[340041888,1728381046279,-658.24612596,0.00011,2]
[340041889,1728381092587,500.0,9.068e-05,2]
[340041890,1728381129073,500.0,0.00010164,2]
[340041891,1728381494613,616.37,8.477e-05,2]
[340041892,1728381745054,-1142.661213,0.00014,7]
[340041893,1728382034485,585.55,8.502e-05,2]
[340041896,1728382232222,-250.0,0.00010312,2]
[340041897,1728382232234,-200.14,0.00010314,2]
[340041898,1728382232244,-374.84309306,0.00010325,2]
[340041899,1728382232256,-137.15690694,0.00010325,2]
[340041900,1728382232266,-171.0,0.00010356,2]
[340041901,1728382232276,-488.0,0.0001037,2]
[340041902,1728382232285,-306.59221457,0.00010391,2]
[340041903,1728382232299,-161.88778543,0.00010391,2]
[340041904,1728382232309,-317.68522622,0.00010392,2]
[340041905,1728382232320,-577.08950482,0.00010392,2]
[340041906,1728382232332,-1089.32754268,0.00010392,2]
[340041907,1728382232396,-1374.94992401,0.00010392,2]
[340041908,1728382232405,-250.0,0.00010402,2]
[340041909,1728382232414,-150.0,0.00010726,2]
[340041910,1728382232423,-585.55,0.00010766,2]
[340041911,1728382232433,-150.0,0.00010799,2]
[340041912,1728382232442,-300.0,0.00010799,2]
[340041913,1728382232451,-3495.56334593,0.000108,2]
[340041914,1728382232462,-68518.57655407,0.000108,2]
[340041915,1728382232471,-2064.8637,0.000108,2]
[340041916,1728382232480,-186.62,0.000109,2]
[340041917,1728382232490,-1301.22792075,0.000109,2]
[340041918,1728382232499,-1131.0,0.000109,2]
[340041919,1728382232508,-413.26876795,0.000109,2]
[340041960,1728382240295,-563.31,0.000109,2]
[340041961,1728382240307,-114.62423205,0.000109,2]
[340041962,1728382240316,-216.4549084,0.000109,2]
[340041963,1728382240325,-200.0,0.00010959,2]
[340041964,1728382240335,-192.09,0.00010959,2]
[340041965,1728382240344,-309.66,0.00010959,2]
[340041966,1728382240354,-110.50196038,0.00010959,2]
[340041967,1728382240365,-47.20803962,0.00010959,2]
[340041968,1728382240374,-259.99707838,0.00010959,2]
[340041969,1728382240385,-832.12292162,0.00010959,2]
[340041970,1728382240394,-187.02,0.00010959,2]
[340041971,1728382240404,-250.0,0.00010959,2]
[340041972,1728382240414,-499.99,0.00010973,2]
[340041973,1728382240423,-160.27513046,0.00010973,2]
[340041974,1728382240432,-500.0,0.00010973,2]
[340041975,1728382240441,-505.36067579,0.00010973,2]
[340041976,1728382240451,-174.37874903,0.00010998,2]
[340041977,1728382240550,-231.63587213,0.00010999,2]
[340041978,1728382240560,-500.0,0.00010999,2]
[340041979,1728382240569,-490.79722075,0.00010999,2]
[340041980,1728382240579,-9833.49697711,0.00011,2]
[340041981,1728382240595,-795.4382291,0.00011,2]
[340041982,1728382240612,-6000.0,0.00011,2]
[340041983,1728382240623,-774.47998531,0.00011,2]
[340042089,1728382243248,-690.61332709,0.00011,2]
[340042094,1728382243308,-188470.50286475,0.00011,2]
[340042100,1728382246198,-566.82135719,0.00010959,2]
[340042101,1728382246211,-26339.54883871,0.00010959,2]
[340042102,1728382246221,-7956.7038888,0.00011,2]
[340042103,1728382246262,-250.0935,0.00011,2]
[340042104,1728382246325,-4347.7801562,0.00011,2]
[340042105,1728382246495,-812.03021226,0.00011,2]
[340042107,1728382344676,500.0,0.00010164,2]
[340042108,1728382635945,567.32,9.444e-05,2]
[340042109,1728383169338,538.95,8.219e-05,2]
[340042110,1728383238065,167.93,9.616e-05,2]
[340042111,1728383289091,374.78,9.616e-05,2]
[340042114,1728383316186,390.4,9.624e-05,2]
[340042140,1728383431401,-500.56005864,0.00010288,2]
[340042141,1728383431412,-1406.64994136,0.00010288,2]
[340042142,1728383431421,-1907.21,0.00010291,2]
[340042143,1728383431431,-1907.21,0.00010293,2]
[340042144,1728383431439,-1907.21,0.00010296,2]
[340042145,1728383431448,-1907.21,0.00010299,2]
[340042146,1728383431457,-300.0,0.00010301,2]
[340042147,1728383431466,-1907.21,0.00010302,2]
[340042148,1728383431476,-1907.21,0.00010304,2]
[340042149,1728383431485,-250.0,0.00010305,2]
[340042150,1728383431494,-499.99,0.00010307,2]
[340042151,1728383431503,-1907.21,0.00010307,2]
[340042152,1728383431512,-1907.21,0.0001031,2]
[340042153,1728383431522,-1907.21,0.00010312,2]
[340042154,1728383431531,-1907.21,0.00010315,2]
[340042155,1728383431541,-1907.21,0.00010318,2]
[340042156,1728383431550,-1907.21,0.00010321,2]
[340042157,1728383431559,-1907.21,0.00010323,2]
[340042158,1728383431568,-250.0,0.00010325,2]
[340042159,1728383431577,-1907.21,0.00010326,2]
[340042160,1728383431585,-1907.21,0.00010329,2]
[340042161,1728383431595,-1907.21,0.00010331,2]
[340042162,1728383431604,-1907.21,0.00010334,2]
[340042163,1728383431613,-1907.21,0.00010337,2]
[340042164,1728383431623,-1907.21,0.0001034,2]
[340042165,1728383431634,-538.95,0.00010455,2]
[340042167,1728383431644,-172.29,0.00010729,2]
[340042169,1728383431653,-374.78,0.00010819,2]
[340042171,1728383431662,-150.0,0.00010819,2]
[340042173,1728383431672,-349.13,0.00010824,2]
[340042175,1728383431680,-390.4,0.00010827,2]
[340042177,1728383431690,-307.0,0.000109,2]
[340042178,1728383431699,-169.38536068,0.000109,2]
[340042180,1728383431708,-160.91279698,0.000109,2]
[340042182,1728383431717,-535.91912654,0.000109,2]
[340042184,1728383431726,-2656.15082732,0.000109,2]
[340042186,1728383431734,-1345.9922901,0.000109,2]
[340042188,1728383431743,-200.0,0.00010959,2]
[340042190,1728383431752,-157.98,0.00010959,2]
[340042192,1728383431761,-250.0,0.00010959,2]
[340042194,1728383431772,-164.39,0.00010959,2]
[340042196,1728383431781,-873.69,0.00010959,2]
[340042198,1728383431790,-500.0,0.00010973,2]
[340042200,1728383431800,-236.13,0.00010988,2]
[340042202,1728383431809,-584.45,0.00010995,2]
[340042204,1728383431819,-154.42391475,0.00010999,2]
[340042206,1728383431828,-180.381,0.00010999,2]
[340042208,1728383431837,-1404.55,0.00010999,2]
[340042210,1728383431846,-168.40668733,0.00010999,2]
[340042211,1728383431855,-500.0,0.00010999,2]
[340042213,1728383431865,-193.55805452,0.00010999,2]
[340042215,1728383431874,-404999.47060637,0.00011,2]
[340042237,1728383432072,-544.57707993,0.00011,2]
[340042239,1728383432084,-418.54007673,0.00011,2]
[340042241,1728383432094,-3209.95,0.00011,2]
[340042243,1728383432105,-299058.20110137,0.00011,2]
[340042245,1728383432114,-342531.0744051,0.00011,2]
[340042247,1728383432123,-301307.73547433,0.00011,2]
[340042258,1728383432134,-61479.98488701,0.00011,2]
[340042548,1728383437518,-204.0437824,0.000109,2]
[340042549,1728383437529,-500.0,0.00010973,2]
[340042550,1728383437538,-11590.35078731,0.00011,2]
[340042551,1728383437549,-31844.98063836,0.00011,2]
[340042552,1728383437561,-693.51935749,0.00011,2]
[340042553,1728383437599,-514936.86128977,0.00011,2]
[340042554,1728383437750,-4622.56783408,0.00011,2]
[340042555,1728383437834,-427.20419193,0.00011,2]
[340042559,1728383439503,-1283.81958987,0.00011,2]
[340042560,1728383439736,-312.795,0.00011,2]
[340042567,1728383442423,-72133.66449361,0.00011,2]
[340042576,1728383442716,-13095.07788184,0.00011,2]
[340042624,1728383445468,-625.4,0.00011,2]
[340042625,1728383445551,-61853.87461861,0.00011,2]
[340043039,1728383675809,250.0,9.996e-05,2]
[340043040,1728383713555,525.48,9.288e-05,2]
[340043041,1728384220239,499.2,8.829e-05,2]
[340043072,1728384631548,-174.56,0.00010238,2]
[340043074,1728384631558,-250.0,0.00010275,2]
[340043075,1728384631569,-250.0,0.00010721,2]
[340043076,1728384631579,-150.0,0.00010877,2]
[340043077,1728384631589,-276.19449853,0.0001089,2]
[340043078,1728384631600,-32.19550147,0.0001089,2]
[340043079,1728384631609,-6388.57745674,0.00010899,2]
[340043080,1728384631619,-150.0,0.00010899,2]
[340043081,1728384631629,-1577.1293,0.000109,2]
[340043082,1728384631639,-4414.9101,0.000109,2]
[340043083,1728384631649,-689.53876036,0.000109,2]
[340043084,1728384631658,-2025.8692,0.000109,2]
[340043085,1728384631667,-395.6864,0.000109,2]
[340043086,1728384631676,-200.0,0.00010959,2]
[340043087,1728384631686,-164.09,0.00010959,2]
[340043088,1728384631695,-182.48,0.00010959,2]
[340043089,1728384631704,-250.0,0.00010959,2]
[340043090,1728384631714,-1435.89,0.00010959,2]
[340043091,1728384631723,-500.0,0.00010973,2]
[340043092,1728384631732,-500.0,0.00010973,2]
[340043093,1728384631742,-1000.0,0.00010997,2]
[340043094,1728384631751,-150.01,0.00010999,2]
[340043095,1728384631763,-160.837,0.00010999,2]
[340043096,1728384631772,-173.07981899,0.00010999,2]
[340043097,1728384631781,-485.49063817,0.00010999,2]
[340043098,1728384631790,-234.464,0.00010999,2]
[340043099,1728384631799,-499.99,0.00010999,2]
[340043100,1728384631809,-200.0,0.00011,2]
[340043101,1728384631818,-18361.15063084,0.00011,2]
[340043102,1728384631830,-1282.26893042,0.00011,2]
[340043103,1728384631841,-17416.93220924,0.00011,2]
[340043104,1728384631852,-546.70831491,0.00011,2]
[340043105,1728384631863,-2154.34428404,0.00011,2]
[340043106,1728384631874,-145660.81680918,0.00011,2]
[340043117,1728384637669,-32006.39999999,0.00011,2]
[340043118,1728384637767,-1342.85010944,0.00011,2]
[340043119,1728384638023,-1700.51020281,0.00011,2]
[340043141,1728384639740,-685.78827101,0.00011,2]
[340043142,1728384639867,-262.61055778,0.00011,2]
[340043149,1728384642855,-158.83782951,0.00010999,2]
[340043150,1728384642865,-191.34617049,0.00011,2]
[340043151,1728384642877,-9048.12466035,0.00011,2]
[340043152,1728384642888,-1255.06367634,0.00011,2]
[340043153,1728384642900,-658.58389155,0.00011,2]
[340043154,1728384642912,-265.46300001,0.00011,2]
[340043155,1728384642924,-250280.45042653,0.00011,2]
[340043156,1728384642935,-427.18428536,0.00011,2]
[340043157,1728384642946,-537.88,0.00011,2]
[340043158,1728384642958,-935.05871083,0.00011,2]
[340043168,1728384645930,-653.79785974,0.00011,2]
[340043361,1728384730094,-2379.91505313,0.000109,2]
[340043362,1728384730115,-437.6638,0.000109,2]
[340043363,1728384730135,-161.8461788,0.000109,2]
[340043364,1728384730156,-7500.0,0.000109,2]
[340043365,1728384730177,-22492.4508,0.000109,2]
[340043366,1728384730200,-1512.93617832,0.000109,2]
[340043367,1728384730240,-504.91039864,0.000109,2]
[340043368,1728384730275,-810.714042,0.000109,2]
[340043369,1728384730312,-33044.4787,0.000109,2]
[340043370,1728384730346,-22188.6891,0.000109,2]
[340043371,1728384730375,-500.0,0.00010973,2]
[340043372,1728384730416,-500.0,0.00010973,2]